bitfinex/quotes_SOLUSD_20250307
["timestamp","ask_amount","ask_price","bid_price","bid_amount"]
[1741335216280,0.03,144.28,144.27,394.1]
[1741335216485,0.03,144.28,144.27,82.1]
[1741335216674,0.03,144.28,144.27,82.24216157]
[1741335217593,0.03,144.28,144.27,104.17738434]
[1741335218291,0.03,144.28,144.27,82.24216157]
[1741335218990,0.03,144.28,144.27,104.17738434]
[1741335219493,0.03,144.28,144.27,416.17738434]
[1741335219671,0.03,144.28,144.27,394.24216157]
[1741335219863,0.03,144.28,144.27,416.17738434]
[1741335220069,0.03,144.28,144.27,423.10878434]
[1741335220587,0.03,144.28,144.27,441.7584332]
[1741335220772,0.03,144.28,144.27,505.2584332]
[1741335220967,0.03,144.28,144.27,193.2584332]
[1741335221678,0.03,144.28,144.27,193.40059477]
[1741335222675,0.03,144.28,144.27,193.2584332]
[1741335223874,0.03,144.28,144.27,505.2584332]
[1741335224473,0.0001,144.28,144.27,527.33581754]
[1741335229087,0.03,144.35,144.31,20.14216157]
[1741335229288,0.03,144.35,144.33,22.07738434]
[1741335230203,0.03,144.35,144.34,22.07738434]
[1741335230378,0.03,144.35,144.34,186.3270332]
[1741335231605,0.03,144.35,144.34,193.2550332]
[1741335232202,0.03,144.35,144.34,505.2550332]
[1741335232574,0.03,144.35,144.34,498.3270332]
[1741335233298,0.03,144.35,144.34,479.67738434]
[1741335234004,0.03,144.35,144.34,479.53522277]
[1741335234399,0.03,144.35,144.34,479.67738434]
[1741335235107,0.03,144.35,144.34,457.74216157]
[1741335235698,0.03,144.35,144.34,479.67738434]
[1741335235999,0.03,144.35,144.34,486.60538434]
[1741335236391,0.03,144.35,144.34,479.67738434]
[1741335236804,0.03,144.35,144.34,486.60538434]
[1741335239722,0.03,144.35,144.34,505.2550332]
[1741335240283,0.03,144.35,144.34,505.39719477]
[1741335240491,0.0001,144.35,144.34,528.94241754]
[1741335243027,0.0001,144.35,144.34,507.00719477]
[1741335244317,0.03,144.39,144.38,20.0]
[1741335244529,0.03,144.41,144.4,60.86919477]
[1741335244702,0.03,144.41,144.4,207.92256924]
[1741335244903,0.03,144.41,144.4,206.3270332]
[1741335245315,0.03,144.41,144.4,165.6]
[1741335245489,0.03,144.41,144.4,102.1]
[1741335246031,0.03,144.41,144.4,124.17738434]
[1741335247629,0.03,144.41,144.4,436.17738434]
[1741335248015,0.03,144.41,144.4,443.10258434]
[1741335248835,0.03,144.41,144.4,394.24216157]
[1741335249143,0.03,144.41,144.4,423.10258434]
[1741335250440,0.03,144.41,144.4,486.60258434]
[1741335252639,0.03,144.41,144.4,478.65939208]
[1741335260418,0.03,144.41,144.4,497.30904094]
[1741335260613,0.0001,144.41,144.4,497.45120251]
[1741335261016,0.0001,144.41,144.4,497.30904094]
[1741335263036,0.0001,144.41,144.4,478.65939208]
[1741335263238,0.0001,144.41,144.4,464.66736157]
[1741335264016,0.0001,144.41,144.4,478.65939208]
[1741335264744,0.0001,144.41,144.4,497.30904094]
[1741335267722,0.0001,144.41,144.4,497.45120251]
[1741335268016,0.0001,144.41,144.4,553.41932455]
[1741335268331,0.0001,144.41,144.4,497.45120251]
[1741335269145,0.03,144.46,144.45,25.71461043]
[1741335269444,0.03,144.46,144.45,192.99936994]
[1741335269648,0.03,144.46,144.45,191.54654094]
[1741335271242,0.03,144.46,144.45,172.89689208]
[1741335271640,0.03,144.46,144.45,191.54654094]
[1741335271815,0.03,144.46,144.45,177.55451043]
[1741335272019,0.03,144.46,144.45,191.54654094]
[1741335272219,0.0001,144.46,144.45,503.68870251]
[1741335272645,0.03,144.48,144.47,0.14216157]
[1741335272846,0.03,144.48,144.47,15.58692404]
[1741335273025,1.5604,144.55,144.49,45.71261043]
[1741335273229,1.5604,144.55,144.49,206.89933138]
[1741335273441,1.5604,144.55,144.49,205.44670251]
[1741335273917,0.0001,144.5,144.49,205.44670251]
[1741335274324,0.0001,144.5,144.49,207.44670251]
[1741335275349,0.0001,144.5,144.49,205.44670251]
[1741335275735,0.0001,144.5,144.49,207.44670251]
[1741335275930,0.0001,144.5,144.49,519.44670251]
[1741335276141,0.0001,144.5,144.49,517.30454094]
[1741335276343,0.0001,144.5,144.49,517.44670251]
[1741335280054,0.0001,144.5,144.49,401.0207]
[1741335280237,0.0001,144.5,144.49,394.0999]
[1741335280437,0.0001,144.5,144.49,415.01273051]
[1741335280639,0.0001,144.5,144.49,433.66237937]
[1741335280863,0.0001,144.5,144.49,497.44670251]
[1741335281541,0.0001,144.5,144.49,471.73409208]
[1741335282053,0.0001,144.5,144.49,457.74206157]
[1741335282270,0.0001,144.5,144.49,471.73409208]
[1741335283543,0.0001,144.5,144.49,394.0999]
[1741335283858,0.0001,144.5,144.49,82.0999]
[1741335284043,0.0001,144.5,144.49,82.24206157]
[1741335284244,0.0001,144.5,144.49,82.0999]
[1741335285153,0.0001,144.5,144.49,82.24206157]
[1741335285357,0.0001,144.5,144.49,145.74206157]
[1741335285568,0.0001,144.5,144.49,159.73409208]
[1741335286558,0.0001,144.5,144.49,167.57442765]
[1741335286767,0.0001,144.5,144.49,479.57442765]
[1741335287468,0.0001,144.5,144.49,486.49522765]
[1741335288369,0.0001,144.5,144.49,479.57442765]
[1741335288669,0.0001,144.5,144.49,457.74206157]
[1741335289051,0.0001,144.5,144.49,82.24206157]
[1741335291964,8.2138,144.5,144.49,312.0]
[1741335292170,0.14216157,144.49,144.44,0.033]
[1741335292367,0.14216157,144.49,144.44,0.17516157]
[1741335293255,6.9213,144.48,144.44,0.17516157]
[1741335293644,6.9213,144.48,144.44,0.033]
[1741335294041,24.2247,144.48,144.44,0.033]
[1741335299965,24.2247,144.48,144.44,0.17516157]
[1741335300352,6.9213,144.48,144.44,0.17516157]
[1741335301175,11.7297184,144.5,144.44,0.17516157]
[1741335301176,24.223,144.49,144.44,0.17516157]
[1741335301473,0.14216157,144.48,144.44,0.033]
[1741335301675,1.5431,144.47,144.44,0.033]
[1741335301855,0.14216157,144.46,144.44,0.033]
[1741335302050,1.5431,144.47,144.44,0.033]
[1741335303060,7.06446157,144.46,144.44,0.033]
[1741335304384,6.9223,144.46,144.44,0.033]
[1741335304881,7.7831,144.47,144.44,0.033]
[1741335304882,8.4651,144.47,144.44,0.033]
[1741335305058,1.5431,144.47,144.45,0.14216157]
[1741335305274,8.4652,144.47,144.44,82.1329]
[1741335305754,25.7698,144.47,144.44,82.1329]
[1741335307553,25.7698,144.47,144.44,0.033]
[1741335307979,0.14216157,144.46,144.44,0.033]
[1741335308280,0.14216157,144.44,144.38,82.1329]
[1741335308479,0.14216157,144.42,144.38,0.033]
[1741335308980,6.24,144.43,144.38,0.033]
[1741335309360,6.9242,144.42,144.38,0.033]
[1741335311258,24.2348,144.42,144.38,0.033]
[1741335311866,6.9242,144.42,144.38,0.033]
[1741335312169,13.1639,144.43,144.38,0.033]
[1741335312355,6.24,144.43,144.38,0.033]
[1741335312561,13.1638,144.43,144.38,0.033]
[1741335312763,13.1638,144.43,144.39,0.14216157]
[1741335315765,0.14216157,144.42,144.38,82.1329]
[1741335316984,0.14216157,144.42,144.38,0.033]
[1741335317363,13.1638,144.43,144.38,0.033]
[1741335318490,18.79181043,144.42,144.38,0.033]
[1741335319390,30.4732,144.43,144.38,0.033]
[1741335321889,30.4732,144.43,144.38,82.1329]
[1741335322091,13.1638,144.43,144.39,0.14216157]
[1741335322886,13.1638,144.43,144.39,82.24206157]
[1741335323191,6.9238,144.43,144.39,82.24206157]
[1741335323386,6.9238,144.43,144.39,82.0999]
[1741335323593,24.2332,144.43,144.39,82.0999]
[1741335325692,18.79181043,144.42,144.38,0.033]
[1741335326092,6.56666157,144.39,144.38,0.033]
[1741335326677,13.49226157,144.39,144.38,0.033]
[1741335328689,32.14191043,144.39,144.38,0.033]
[1741335329571,18.64964886,144.36,144.34,0.033]
[1741335329772,0.14216157,144.35,144.34,0.033]
[1741335330794,7.06976157,144.35,144.34,0.033]
[1741335330993,25.71941043,144.35,144.34,0.033]
[1741335331500,13.1672,144.36,144.34,0.033]
[1741335331680,6.24,144.36,144.34,0.033]
[1741335331880,8.09415711,144.37,144.34,0.033]
[1741335333093,18.64964886,144.42,144.35,0.14216157]
[1741335333296,3.45833596,144.42,144.35,0.14216157]
[1741335333485,15.78700452,144.42,144.35,0.14216157]
[1741335333808,33.09760452,144.42,144.35,0.14216157]
[1741335334297,0.14216157,144.4,144.35,0.14216157]
[1741335334998,6.9247,144.41,144.35,7.06966157]
[1741335335608,1.6123,144.42,144.35,7.06966157]
[1741335335785,1.6123,144.42,144.35,174.5564099]
[1741335335980,1.6123,144.42,144.37,0.14216157]
[1741335336184,1.5107,144.45,144.37,145.74206157]
[1741335336708,0.03,144.44,144.37,145.74206157]
[1741335337003,0.03,144.44,144.41,0.14216157]
[1741335337195,0.03,144.44,144.41,82.24206157]
[1741335338205,0.03,144.44,144.41,167.6289099]
[1741335338594,0.03,144.44,144.43,0.14216157]
[1741335338785,0.03,144.44,144.43,40.67865876]
[1741335338989,0.03,144.44,144.43,193.20225876]
[1741335339687,0.03,144.44,144.43,505.20225876]
[1741335340095,0.03,144.44,144.43,505.34442033]
[1741335340289,0.03,144.44,144.43,193.34442033]
[1741335341404,0.03,144.44,144.43,193.20225876]
[1741335343402,0.03,144.44,144.43,505.20225876]
[1741335343601,0.03,144.44,144.43,486.5526099]
[1741335348903,0.03,144.44,144.43,145.74206157]
[1741335349105,0.03,144.44,144.43,82.0999]
[1741335349488,0.03,144.44,144.43,82.24206157]
[1741335350015,0.03,144.44,144.43,82.0999]
[1741335350221,0.03,144.44,144.43,82.24206157]
[1741335352289,0.03,144.44,144.43,174.5526099]
[1741335353719,0.03,144.44,144.43,145.74206157]
[1741335354019,0.03,144.44,144.43,82.0999]
[1741335356006,0.03,144.44,144.39,145.5999]
[1741335356604,0.03,144.44,144.4,0.14216157]
[1741335357015,1.6129,144.43,144.39,82.0999]
[1741335357718,1.6129,144.43,144.4,0.14216157]
[1741335358115,0.03,144.44,144.4,0.14216157]
[1741335360317,0.03,144.44,144.4,89.16706157]
[1741335360499,0.03,144.44,144.4,152.66706157]
[1741335361616,0.03,144.44,144.4,145.74206157]
[1741335361804,0.03,144.44,144.4,145.5999]
[1741335362622,0.03,144.44,144.37,145.6329]
[1741335362927,1.6375,144.41,144.37,82.1329]
[1741335363403,6.9252,144.4,144.37,82.1329]
[1741335365218,0.14216157,144.39,144.37,0.033]
[1741335365414,6.26196157,144.39,144.37,0.033]
[1741335365722,0.14216157,144.37,144.34,0.033]
[1741335366607,0.14216157,144.35,144.34,0.033]
[1741335366817,0.14216157,144.37,144.34,0.033]
[1741335367218,6.9271,144.36,144.34,0.033]
[1741335368625,0.14216157,144.35,144.34,0.033]
[1741335369436,7.06976157,144.35,144.34,0.033]
[1741335370044,25.71941043,144.35,144.34,0.033]
[1741335371216,7.06976157,144.35,144.34,0.033]
[1741335371932,10.59469383,144.35,144.34,0.033]
[1741335374649,6.9276,144.35,144.34,0.033]
[1741335375649,7.06976157,144.35,144.34,0.033]
[1741335377324,6.9276,144.35,144.34,0.033]
[1741335377518,7.06876157,144.37,144.34,0.033]
[1741335377752,6.9266,144.37,144.34,0.033]
[1741335378122,24.2432,144.37,144.34,0.033]
[1741335378731,0.14216157,144.36,144.34,0.033]
[1741335380624,3.5202758,144.37,144.34,0.033]
[1741335380824,6.9266,144.37,144.34,0.033]
[1741335381849,24.2432,144.37,144.34,0.033]
[1741335382050,6.9263,144.38,144.34,0.033]
[1741335382240,113.09134886,144.43,144.35,0.14216157]
[1741335382427,0.14216157,144.42,144.35,82.24206157]
[1741335382626,5.0274506,144.41,144.35,82.24206157]
[1741335382830,0.14216157,144.39,144.35,82.0999]
[1741335383238,18.79181043,144.39,144.34,0.033]
[1741335383652,0.14216157,144.37,144.34,0.033]
[1741335383959,6.24,144.38,144.34,0.033]
[1741335384453,0.14216157,144.39,144.34,0.033]
[1741335384655,6.9252,144.4,144.34,82.27506157]
[1741335387948,1.6375,144.41,144.34,89.20306157]
[1741335388260,8.5622,144.41,144.34,111.0899099]
[1741335388683,6.9247,144.41,144.34,174.5899099]
[1741335388969,10.31501534,144.43,144.36,0.14216157]
[1741335389173,8.5252,144.44,144.38,0.14216157]
[1741335389346,6.9534,144.44,144.38,0.14216157]
[1741335389844,0.03,144.44,144.39,0.14216157]
[1741335390048,0.03,144.44,144.39,145.74206157]
[1741335390449,0.03,144.44,144.41,0.14216157]
[1741335390656,0.03,144.44,144.42,22.0290099]
[1741335390852,0.03,144.44,144.43,7.06586157]
[1741335391262,0.03,144.44,144.43,0.14216157]
[1741335395976,0.03,144.44,144.43,82.24206157]
[1741335396667,0.03,144.44,144.43,89.16576157]
[1741335397054,0.03,144.44,144.43,174.5526099]
[1741335399671,0.03,144.44,144.43,486.5526099]
[1741335400372,0.03,144.44,144.43,193.20225876]
[1741335400559,0.03,144.44,144.43,193.34442033]
[1741335400765,0.03,144.49,144.47,0.14216157]
[1741335400954,0.03,144.49,144.47,145.74206157]
[1741335401974,0.03,144.49,144.48,7.06346157]
[1741335402556,0.03,144.49,144.48,174.5502099]
[1741335403462,0.03,144.49,144.48,486.5502099]
[1741335404847,0.03,144.49,144.48,505.19985876]
[1741335405047,0.03,144.49,144.48,511.36185876]
[1741335406154,0.03,144.49,144.48,199.36185876]
[1741335408392,0.0001,144.5,144.49,18.933972]
[1741335408557,0.03,144.56,144.55,0.14216157]
[1741335408880,0.03,144.56,144.55,208.30756866]
[1741335409180,0.0001,144.56,144.55,521.31726866]
[1741335410684,0.0001,144.56,144.55,528.23526866]
[1741335411268,0.0001,144.56,144.55,530.23526866]
[1741335412482,0.0001,144.56,144.55,528.23526866]
[1741335412688,0.0001,144.56,144.55,484.461572]
[1741335412863,0.0001,144.56,144.55,512.30409719]
[1741335413064,0.0001,144.56,144.55,485.8689099]
[1741335413269,0.0001,144.56,144.55,173.72674833]
[1741335413490,0.0001,144.56,144.55,173.8689099]
[1741335413790,0.0001,144.56,144.55,199.43655876]
[1741335414191,0.0001,144.56,144.55,192.51855876]
[1741335414481,0.0001,144.56,144.55,199.43655876]
[1741335414861,0.0001,144.56,144.55,180.7869099]
[1741335416184,0.0001,144.56,144.55,492.7869099]
[1741335416393,0.0001,144.56,144.55,485.8689099]
[1741335416764,0.0001,144.56,144.55,492.7869099]
[1741335417266,0.0001,144.56,144.55,485.8689099]
[1741335417464,0.0001,144.56,144.55,479.6289099]
[1741335417690,0.0001,144.56,144.55,167.6289099]
[1741335417993,0.0001,144.56,144.55,145.74206157]
[1741335418808,0.0001,144.56,144.55,82.0999]
[1741335418985,0.0001,144.56,144.55,82.24206157]
[1741335420306,0.0001,144.56,144.55,145.74206157]
[1741335420779,0.0001,144.56,144.55,145.5999]
[1741335421105,0.0001,144.56,144.55,145.74206157]
[1741335421906,0.0001,144.56,144.5,167.48674833]
[1741335422202,0.0001,144.56,144.52,0.14216157]
[1741335422499,0.0001,144.56,144.51,6.24]
[1741335422677,0.0001,144.56,144.5,82.0999]
[1741335422882,6.356,144.55,144.5,82.0999]
[1741335423095,18.79181043,144.54,144.5,82.0999]
[1741335423298,1.5906,144.53,144.5,82.0999]
[1741335423485,1.5906,144.53,144.47,151.8399]
[1741335423676,6.9194,144.52,144.48,0.14216157]
[1741335425403,6.9194,144.52,144.48,82.24206157]
[1741335425592,6.9194,144.52,144.48,82.0999]
[1741335425795,18.79181043,144.51,144.45,145.5999]
[1741335426002,18.79181043,144.51,144.46,0.14216157]
[1741335426795,18.79181043,144.51,144.44,0.033]
[1741335427017,20.21804886,144.47,144.44,0.033]
[1741335427391,1.5684,144.47,144.44,0.033]
[1741335427888,27.13994886,144.47,144.44,0.033]
[1741335429805,8.4903,144.47,144.44,0.033]
[1741335430182,8.4903,144.47,144.46,0.033]
[1741335431986,44.58671043,144.47,144.44,0.033]
[1741335432192,18.79181043,144.46,144.44,0.033]
[1741335432611,18.79181043,144.46,144.44,0.0001]
[1741335432815,18.79181043,144.46,144.38,82.0999]
[1741335433018,100.79181043,144.46,144.38,82.0999]
[1741335433204,100.79181043,144.46,144.39,0.14216157]
[1741335434587,6.9228,144.45,144.39,0.14216157]
[1741335435713,88.9224,144.46,144.39,7.06756157]
[1741335435914,1.5684,144.47,144.39,174.5543099]
[1741335436120,1.5684,144.47,144.41,22.0290099]
[1741335436300,1.5684,144.47,144.41,82.24206157]
[1741335436696,1.5684,144.47,144.43,0.14216157]
[1741335436895,1.5684,144.47,144.43,82.24206157]
[1741335437196,8.4904,144.47,144.43,82.24206157]
[1741335439315,1.5051,144.51,144.43,70.56586157]
[1741335439505,8.425,144.51,144.43,92.4527099]
[1741335439714,18.64964886,144.5,144.43,63.64216157]
[1741335439905,18.64964886,144.5,144.43,70.56586157]
[1741335440322,11.96943705,144.51,144.43,70.56586157]
[1741335440913,15.86988862,144.5,144.43,70.56586157]
[1741335441412,1.5051,144.51,144.45,0.14216157]
[1741335441620,0.03,144.47,144.45,0.14216157]
[1741335441919,0.03,144.47,144.45,82.24216157]
[1741335442817,0.03,144.47,144.45,82.1]
[1741335443414,0.03,144.47,144.43,82.133]
[1741335443808,0.03,144.47,144.44,0.14216157]
[1741335446510,0.03,144.47,144.44,82.24216157]
[1741335448623,0.03,144.47,144.44,486.5521099]
[1741335449919,0.03,144.47,144.44,457.74216157]
[1741335450922,0.03,144.47,144.44,486.5522099]
[1741335454204,0.03,144.47,144.46,0.14216157]
[1741335454408,0.03,144.47,144.46,22.0290099]
[1741335454844,0.03,144.47,144.46,167.6290099]
[1741335456349,0.03,144.47,144.46,82.1]
[1741335456843,0.03,144.47,144.46,82.24216157]
[1741335457049,0.03,144.47,144.43,82.133]
[1741335457550,0.03,144.47,144.44,0.14216157]
[1741335459744,0.03,144.47,144.43,82.133]
[1741335460351,18.82181043,144.47,144.43,82.133]
[1741335460938,1.5386,144.44,144.37,82.133]
[1741335461251,25.03181043,144.43,144.37,0.033]
[1741335461456,35.67680281,144.43,144.37,0.033]
[1741335461627,18.79181043,144.41,144.37,0.033]
[1741335462054,29.66072433,144.41,144.37,0.033]
[1741335462443,6.9252,144.4,144.37,0.033]
[1741335465132,6.9252,144.4,144.37,0.17516157]
[1741335465661,6.9252,144.4,144.37,0.033]
[1741335465965,18.79181043,144.39,144.37,0.033]
[1741335466629,6.9261,144.38,144.37,0.033]
[1741335476976,7.06776157,144.39,144.37,0.033]
[1741335477147,24.38196157,144.39,144.34,82.133]
[1741335477965,0.14216157,144.37,144.34,82.133]
[1741335478985,6.9271,144.36,144.34,82.133]
[1741335481675,0.14216157,144.35,144.34,82.133]
[1741335481874,0.14216157,144.35,144.34,0.033]
[1741335482248,18.79181043,144.35,144.31,82.133]
[1741335482890,18.79181043,144.35,144.31,0.033]
[1741335483383,0.14216157,144.32,144.31,0.033]
[1741335484286,15.60198435,144.33,144.31,0.033]
[1741335485459,7.07066157,144.33,144.31,0.033]
[1741335491092,1.6294,144.32,144.31,0.033]
[1741335491395,20.42121043,144.32,144.3,0.033]
[1741335491696,7.07166157,144.31,144.3,0.033]
[1741335493390,8.5587,144.32,144.3,0.033]
[1741335493571,6.9293,144.32,144.3,0.033]
[1741335493781,6.9577,144.35,144.3,82.133]
[1741335494292,0.14216157,144.34,144.3,82.133]
[1741335494696,0.03,144.35,144.31,0.14216157]
[1741335496106,0.03,144.35,144.31,82.24216157]
[1741335496405,6.9576,144.35,144.31,82.24216157]
[1741335496595,0.03,144.35,144.31,89.17166157]
[1741335497000,0.03,144.35,144.31,111.0585099]
[1741335497181,0.03,144.35,144.33,0.14216157]
[1741335497385,0.03,144.35,144.34,22.0290099]
[1741335497802,0.03,144.35,144.34,334.0290099]
[1741335498201,0.03,144.35,144.34,479.6290099]
[1741335498804,0.03,144.35,144.34,486.5570099]
[1741335500517,0.03,144.35,144.34,488.0988099]
[1741335500718,0.03,144.35,144.34,176.0988099]
[1741335502413,0.03,144.35,144.34,145.74216157]
[1741335503213,0.03,144.35,144.34,82.24216157]
[1741335503509,0.03,144.35,144.34,82.1]
[1741335503809,0.03,144.35,144.34,82.24216157]
[1741335504115,0.03,144.35,144.34,89.17016157]
[1741335504890,0.03,144.35,144.34,82.24216157]
[1741335505389,0.03,144.35,144.34,89.17016157]
[1741335505589,0.03,144.35,144.34,82.24216157]
[1741335506214,0.03,144.35,144.34,82.1]
[1741335507010,0.03,144.35,144.34,82.24216157]
[1741335507711,0.03,144.35,144.34,82.1]
[1741335507889,0.03,144.35,144.31,82.133]
[1741335508910,0.03,144.35,144.31,0.033]
[1741335509117,18.82181043,144.35,144.31,0.033]
[1741335509815,18.64964886,144.33,144.31,0.033]
[1741335510019,0.14216157,144.32,144.31,0.033]
[1741335512619,7.07116157,144.32,144.31,0.033]
[1741335512794,3.53603896,144.32,144.31,0.033]
[1741335512994,6.9286,144.33,144.31,0.033]
[1741335513803,0.14216157,144.34,144.31,0.033]
[1741335514120,18.79181043,144.33,144.31,0.033]
[1741335515616,0.14216157,144.31,144.3,0.033]
[1741335516014,25.72131043,144.31,144.3,0.033]
[1741335516212,18.79181043,144.3,144.29,0.033]
[1741335517711,25.72181043,144.3,144.29,0.033]
[1741335520715,29.27426959,144.3,144.29,0.033]
[1741335521925,29.27426959,144.3,144.28,0.033]
[1741335521926,0.14216157,144.29,144.28,0.033]
[1741335523924,25.72221043,144.29,144.28,0.033]
[1741335524226,0.14216157,144.27,144.24,0.033]
[1741335524427,6.38216157,144.27,144.24,0.033]
[1741335524830,0.14216157,144.25,144.24,0.033]
[1741335525039,100.79181043,144.25,144.24,0.0001]
[1741335526110,107.72421043,144.25,144.24,0.0001]
[1741335526734,113.2202467,144.25,144.24,0.0001]
[1741335529822,31.25413429,144.25,144.24,0.0001]
[1741335530230,29.17387932,144.25,144.24,0.0001]
[1741335530736,22.24147932,144.25,144.24,0.0001]
[1741335531234,29.17387932,144.25,144.24,0.0001]
[1741335531736,3.59183046,144.25,144.24,0.0001]
[1741335532438,6.9314,144.27,144.24,0.0001]
[1741335532640,0.14216157,144.27,144.24,0.0001]
[1741335532932,3.49481972,144.28,144.24,0.0001]
[1741335533136,6.9296,144.31,144.25,0.14216157]
[1741335533318,0.03,144.32,144.25,394.24216157]
[1741335533319,6.959,144.32,144.25,394.24216157]
[1741335533634,0.14216157,144.31,144.25,394.24216157]
[1741335533942,7.07166157,144.31,144.25,394.24216157]
[1741335534436,7.07166157,144.31,144.25,82.24216157]
[1741335535013,10.45881945,144.32,144.25,88.56556157]
[1741335535212,10.45881945,144.32,144.25,90.11206157]
[1741335535440,0.14216157,144.31,144.25,90.11206157]
[1741335535941,0.14216157,144.31,144.25,97.04436157]
[1741335537418,0.14216157,144.31,144.25,409.04436157]
[1741335540333,10.45871945,144.32,144.25,409.04436157]
[1741335540334,3.52971945,144.32,144.25,409.04436157]
[1741335540532,0.03,144.32,144.25,472.54436157]
[1741335540722,0.03,144.32,144.29,0.14216157]
[1741335540924,0.03,144.32,144.29,82.24216157]
[1741335541240,0.14216157,144.31,144.27,0.14216157]
[1741335542714,6.93,144.3,144.27,0.14216157]
[1741335543442,0.14216157,144.29,144.25,0.14216157]
[1741335545142,6.9309,144.28,144.24,82.1001]
[1741335545340,0.14216157,144.29,144.24,0.0001]
[1741335545341,38.79181043,144.29,144.24,0.0001]
[1741335546341,24.2583,144.28,144.24,0.0001]
[1741335546660,18.79181043,144.27,144.24,0.0001]
[1741335547316,6.9319,144.26,144.24,0.0001]
[1741335547521,0.14216157,144.25,144.24,0.0001]
[1741335550523,6.9319,144.26,144.24,312.0001]
[1741335550845,0.14216157,144.25,144.24,312.0001]
[1741335551056,0.14216157,144.25,144.24,0.0001]
[1741335551438,18.79181043,144.25,144.24,0.0001]
[1741335551645,20.43101043,144.25,144.24,0.0001]
[1741335553345,27.36341043,144.25,144.24,0.0001]
[1741335554024,27.36341043,144.25,144.24,312.0001]
[1741335554223,40.12432963,144.25,144.24,312.0001]
[1741335554443,27.36341043,144.25,144.24,312.0001]
[1741335555132,7.07456157,144.25,144.24,312.0001]
[1741335555446,82.03,144.32,144.25,0.14216157]
[1741335555626,3.57882085,144.32,144.25,82.24216157]
[1741335556048,3.57882085,144.32,144.25,104.1290099]
[1741335556237,10.50792085,144.32,144.25,82.24216157]
[1741335556439,0.14216157,144.31,144.25,82.24216157]
[1741335556752,10.50792085,144.32,144.25,82.24216157]
[1741335557530,7.07166157,144.31,144.25,82.24216157]
[1741335557732,0.14216157,144.31,144.25,89.17446157]
[1741335558553,3.57882085,144.32,144.3,312.0]
[1741335558738,0.03,144.32,144.3,312.0]
[1741335558938,0.03,144.32,144.26,0.14216157]
[1741335559141,6.9591,144.32,144.26,145.74216157]
[1741335560856,0.03,144.31,144.26,145.74216157]
[1741335561046,0.03,144.31,144.26,152.67396157]
[1741335561247,0.03,144.31,144.26,174.5608099]
[1741335561445,0.03,144.31,144.26,152.67396157]
[1741335561958,0.03,144.31,144.3,312.14216157]
[1741335562156,0.03,144.31,144.3,394.24216157]
[1741335563141,0.03,144.31,144.3,401.17216157]
[1741335563734,0.03,144.31,144.3,394.24216157]
[1741335564067,0.03,144.31,144.3,394.1]
[1741335565240,0.03,144.31,144.3,312.0]
[1741335565564,0.03,144.31,144.3,312.14216157]
[1741335568479,0.03,144.31,144.27,0.14216157]
[1741335568641,0.03,144.31,144.27,82.24216157]
[1741335570896,0.03,144.31,144.28,0.14216157]
[1741335573193,0.03,144.31,144.27,82.1]
[1741335573689,0.17216157,144.31,144.27,82.1]
[1741335574265,6.24,144.3,144.25,0.033]
[1741335574771,0.14216157,144.28,144.25,0.033]
[1741335575791,6.9314,144.27,144.25,0.033]
[1741335577665,7.07406157,144.26,144.25,0.033]
[1741335578393,24.65481068,144.26,144.25,0.033]
[1741335578569,7.07406157,144.26,144.25,0.033]
[1741335579288,6.9319,144.26,144.25,0.033]
[1741335579482,6.9309,144.28,144.25,0.033]
[1741335580173,11.17818892,144.27,144.25,0.033]
[1741335580571,11.17818892,144.27,144.25,312.033]
[1741335580772,6.24,144.29,144.25,312.033]
[1741335581095,0.03,144.31,144.26,0.14216157]